Workbook

Sheet Титульный
D9: Примерное двенадцатидневное меню
A11: Для организации горячего питания (горячих завтраков) для обучающихся старших классов
A12: общеобразовательных организаций Республики Татарстан на 1 полугодие 2024 года

Sheet 1
A1: ПРИМЕРНОЕ ДВУХНЕДЕЛЬНОЕ МЕНЮ ДЛЯ ОБУЧАЮЩИХСЯ В ОБЩЕОБРАЗОВАТЕЛЬНЫХ УЧРЕЖДЕНИЯХ С 5-11 КЛАССЫ
A2: № рец. | B2: Наименование блюд | C2: Выход | D2: Белки, г | E2: Жиры, г | F2: Углеводы, г | G2: Калорийность, ккал | H2: Витамин В1, мг | I2: Витамин С, мг | J2: Витамин А, рет,экв/сут | K2: Витамин Е, мг | L2: Ca, мг | M2: Р, мг | N2: Mg, мг | O2: Fe, мг
B3: 1-ая неделя
B4: 1 день
A5: 338 | B5: ФРУКТЫ | C5: 100 | D5: 0.4 | E5: 0.4 | F5: 9.8 | G5: 47 | H5: 0.03 | I5: 10 | J5: - | K5: 0.2 | L5: 16 | M5: 11 | N5: 9 | O5: 1.1
A6: 15 | B6: СЫР ПОРЦИЯМИ | C6: 10 | D6: 2.32 | E6: 2.7 | F6: - | G6: 20.8 | H6: 0.004 | I6: 1.2 | J6: 52.55 | K6: 0.05 | L6: 44 | M6: 21.7 | N6: 3.5 | O6: 0.05
A7: 45 | B7: САЛАТ ИЗ БЕЛОКОЧАННОЙ КАПУСТЫ | C7: 60 | D7: 0.79 | E7: 1.95 | F7: 3.88 | G7: 36.24 | H7: 0.01 | I7: 10.26 | J7: - | K7: - | L7: 14.98 | M7: 16.98 | N7: 9.05 | O7: 0.28
A8: 291 | B8: ПЛОВ ИЗ ПТИЦЫ | C8: 200/50 | D8: 20.01 | E8: 23.69 | F8: 44.27 | G8: 447.09 | H8: 0.18 | I8: 12.5 | J8: 218.5 | K8: - | L8: 162.61 | M8: 128.66 | N8: 58.66 | O8: 1.88
A9: 349 | B9: КОМПОТ ИЗ СУХОФРУКТОВ | C9: 200 | D9: 0.66 | E9: 1.5 | F9: 22.6 | G9: 132.8 | H9: 0.016 | I9: 0.73 | J9: - | K9: - | L9: 32.48 | M9: 23.44 | N9: 17.46 | O9: 0.698
B10: ХЛЕБ ПШЕНИЧНЫЙ | C10: 40 | D10: 3.04 | E10: 0.32 | F10: 15.68 | G10: 94.67 | H10: 0.044 | I10: - | J10: - | K10: 0.44 | L10: 8 | M10: 26 | N10: 5.6 | O10: 0.44
B11: ХЛЕБ СЕЛЬСКИЙ | C11: 40 | D11: 2 | E11: 0.4 | F11: 18 | G11: 88 | H11: 0.028 | I11: - | J11: - | K11: 0.216 | L11: 5.52 | M11: 25.44 | N11: 6 | O11: 0.24
B12: Итого: | C12: 700 | D12: =SUM(D5:D11) -> 29.22 | E12: 30.96 | F12: 114.23 | G12: 866.6 | H12: 0.312 | I12: 34.69 | J12: 271.05 | K12: 0.906 | L12: 283.59 | M12: 253.22 | N12: 109.27 | O12: 4.688

Sheet 2
A1: № рец. | B1: Наименование блюд | C1: Выход | D1: Белки, г | E1: Жиры, г | F1: Углеводы, г | G1: Калорийность, ккал | H1: Витамин В1, мг | I1: Витамин С, мг | J1: Витамин А, мг | K1: Витамин Е, мг | L1: Ca, мг | M1: Р, мг | N1: Mg, мг | O1: Fe, мг
B2: 1-ая неделя
B3: 2 день
A4: 52 | B4: САЛАТ ИЗ СВЕКЛЫ ОТВАРНОЙ | C4: 60 | D4: 0.84 | E4: 1.66 | F4: 4.56 | G4: 54.6 | H4: 0.012 | I4: 5.22 | J4: 57 | K4: 1.62 | L4: 66.2 | M4: 39 | N4: 12 | O4: 0.02
A5: 279 | B5: ТЕФТЕЛИ ГОВЯЖЬИ С СОУСОМ | C5: 70/30 | D5: 11.746 | E5: 12.68 | F5: 9 | G5: 171.91 | H5: 0.084 | I5: 5.2 | J5: 96.73 | K5: - | L5: 98.41 | M5: 75.71 | N5: 29.77 | O5: 2.16
A6: 203 | B6: МАКАРОННЫЕ ИЗДЕЛИЯ ОТВАРНЫЕ С МАСЛОМ | C6: 180/5 | D6: 6.66 | E6: 10.74 | F6: 35.46 | G6: 221.4 | H6: 0.072 | I6: 6.36 | J6: 37.8 | K6: 0.9 | L6: 14.4 | M6: 54 | N6: 9 | O6: 1.26
A7: 484 | B7: КИСЕЛЬ | C7: 200 | D7: 0 | E7: 0 | F7: 15 | G7: 60 | H7: 0 | I7: 0 | J7: 0 | K7: 0 | L7: 3.4 | M7: 5.8 | N7: 0 | O7: 0.02
B8: ПЕЧЕНЬЕ | C8: 40 | D8: 3 | E8: 3.92 | F8: 29.76 | G8: 166 | H8: 0.03 | I8: 0 | J8: 52.1 | K8: 1.88 | L8: 11.6 | M8: 36 | N8: 8 | O8: 0.84
B9: ХЛЕБ ПШЕНИЧНЫЙ | C9: 40 | D9: 3.04 | E9: 0.32 | F9: 15.68 | G9: 94.67 | H9: 0.044 | I9: - | J9: - | K9: 0.44 | L9: 8 | M9: 26 | N9: 5.6 | O9: 0.44
B10: ХЛЕБ СЕЛЬСКИЙ | C10: 40 | D10: 2 | E10: 0.4 | F10: 18 | G10: 88 | H10: 0.028 | I10: - | J10: - | K10: 0.216 | L10: 5.52 | M10: 25.44 | N10: 6 | O10: 0.24
B11: Итого: | C11: 665 | D11: =SUM(D4:D10) -> 27.286 | E11: 29.72 | F11: 127.46 | G11: 856.58 | H11: 0.27 | I11: 16.78 | J11: 243.63 | K11: 5.056 | L11: 207.53 | M11: 261.95 | N11: 70.37 | O11: 4.98

Sheet 3
A1: № рец. | B1: Наименование блюд | C1: Выход | D1: Белки, г | E1: Жиры, г | F1: Углеводы, г | G1: Калорийность, ккал | H1: Витамин В1, мг | I1: Витамин С, мг | J1: Витамин А, мг | K1: Витамин Е, мг | L1: Ca, мг | M1: Р, мг | N1: Mg, мг | O1: Fe, мг
B2: 1-ая неделя
B3: 3 день
A4: 15 | B4: СЫР ПОРЦИЯМИ | C4: 10 | D4: 2.32 | E4: 2.7 | F4: - | G4: 20.8 | H4: 0.004 | I4: 1.2 | J4: 52.55 | K4: 0.05 | L4: 44 | M4: 21.7 | N4: 3.5 | O4: 0.05
A5: 2 | B5: САЛАТ ВИТАМИННЫЙ | C5: 60 | D5: 0.72 | E5: 3.06 | F5: 3.3 | G5: 43.8 | H5: 0.02 | I5: 7.8 | J5: 0 | K5: 1.44 | L5: 20.4 | M5: 18 | N5: 10.8 | O5: 0.56
A6: 234 | B6: БИТОЧКИ РЫБНЫЕ С СОУСОМ | C6: 70/30 | D6: 10.05 | E6: 12.09 | F6: 21.78 | G6: 195.56 | H6: 0.076 | I6: 9.6 | J6: 57.29 | K6: - | L6: 87.16 | M6: 71.56 | N6: 14.97 | O6: 1.5
A7: 312 | B7: ПЮРЕ КАРТОФЕЛЬНОЕ | C7: 180 | D7: 5.724 | E7: 6.516 | F7: 46.62 | G7: 263.16 | H7: 0.0384 | I7: 11.76 | J7: 44.4 | K7: 0.342 | L7: 44.7 | M7: 100.44 | N7: 21.78 | O7: 0.9648
A8: 376 | B8: ЧАЙ ЧЕРНЫЙ С САХАРОМ | C8: 200/8 | D8: 0.321 | E8: 0.005 | F8: 21.725 | G8: 88 | H8: 0.15 | I8: - | J8: 0.309 | K8: 1.5 | L8: 100.45 | M8: 91.5 | N8: 10 | O8: 0.3
B9: ХЛЕБ ПШЕНИЧНЫЙ | C9: 40 | D9: 3.04 | E9: 0.32 | F9: 15.68 | G9: 94.67 | H9: 0.044 | I9: - | J9: - | K9: 0.44 | L9: 8 | M9: 26 | N9: 5.6 | O9: 0.44
B10: ХЛЕБ СЕЛЬСКИЙ | C10: 40 | D10: 2 | E10: 0.4 | F10: 18 | G10: 88 | H10: 0.028 | I10: - | J10: - | K10: 0.216 | L10: 5.52 | M10: 25.44 | N10: 6 | O10: 0.24
B11: Итого: | C11: 638 | D11: =SUM(D4:D10) -> 24.175 | E11: =SUM(E4:E10) -> 25.091 | F11: 127.105 | G11: 793.99 | H11: 0.3604 | I11: 30.36 | J11: 154.549 | K11: 3.988 | L11: 310.23 | M11: 354.64 | N11: 72.65 | O11: 4.0548

Sheet 4
A1: № рец. | B1: Наименование блюд | C1: Выход | D1: Белки, г | E1: Жиры, г | F1: Углеводы, г | G1: Калорийность, ккал | H1: Витамин В1, мг | I1: Витамин С, мг | J1: Витамин А, мг | K1: Витамин Е, мг | L1: Ca, мг | M1: Р, мг | N1: Mg, мг | O1: Fe, мг
B2: 1-ая неделя
B3: 4 день
A4: 14 | B4: МАСЛО СЛИВОЧНОЕ | C4: 10 | D4: 0.08 | E4: 7.25 | F4: 0.13 | G4: 66 | H4: - | I4: - | J4: 40 | K4: 0.01 | L4: 2.4 | M4: 3 | N4: - | O4: 0.02
A5: 62 | B5: САЛАТ ИЗ МОРКОВИ | C5: 60 | D5: 0.74 | E5: 0.056 | F5: 6.89 | G5: 49.02 | H5: 0.03 | I5: 2.02 | J5: - | K5: - | L5: 15.46 | M5: 31.66 | N5: 21.63 | O5: 0.4
A6: 289 | B6: РАГУ ИЗ ПТИЦЫ | C6: 200/50 | D6: 20.013 | E6: 24.125 | F6: 44.268 | G6: 447.088 | H6: 0.175 | I6: 0.000 | J6: 218.500 | K6: - | L6: 162.610 | M6: 128.663 | N6: 36.163 | O6: 1.875
A7: 377 | B7: ЧАЙ ЧЕРНЫЙ С САХАРОМ С ЛИМОНОМ | C7: 200/8/7 | D7: 0.13 | E7: 0.02 | F7: 15.2 | G7: 62 | H7: 0 | I7: 2.83 | J7: 0 | K7: 1.5 | L7: 14.2 | M7: 4.4 | N7: 2.4 | O7: 0.36
B8: ХЛЕБ ПШЕНИЧНЫЙ | C8: 40 | D8: 3.04 | E8: 0.32 | F8: 15.68 | G8: 94.67 | H8: 0.044 | I8: - | J8: - | K8: 0.44 | L8: 8 | M8: 26 | N8: 5.6 | O8: 0.44
B9: ХЛЕБ СЕЛЬСКИЙ | C9: 40 | D9: 2 | E9: 0.4 | F9: 18 | G9: 88 | H9: 0.028 | I9: - | J9: - | K9: 0.216 | L9: 5.52 | M9: 25.44 | N9: 6 | O9: 0.24
B10: Итого: | C10: 615 | D10: =SUM(D4:D9) -> 26.0025 | E10: =SUM(E4:E9) -> 32.171 | F10: 100.1675 | G10: 806.7775 | H10: 0.277 | I10: 4.85 | J10: 258.5 | K10: 2.166 | L10: 208.19 | M10: 219.1625 | N10: 71.7925 | O10: 3.335

Sheet 5
A1: № рец. | B1: Наименование блюд | C1: Выход | D1: Белки, г | E1: Жиры, г | F1: Углеводы, г | G1: Калорийность, ккал | H1: Витамин В1, мг | I1: Витамин С, мг | J1: Витамин А, мг | K1: Витамин Е, мг | L1: Ca, мг | M1: Р, мг | N1: Mg, мг | O1: Fe, мг
B2: 1-ая неделя
B3: 5 день
A4: 67 | B4: ВИНЕГРЕТ ОВОЩНОЙ | C4: 60 | D4: 0.84 | E4: 6.02 | F4: 4.37 | G4: 75.06 | H4: 0.026 | I4: 5.78 | J4: 0 | K4: 1.68 | L4: 18.74 | M4: 25.96 | N4: 11.72 | O4: 0.5
A5: 295 | B5: КОТЛЕТЫ КУРИНЫЕ С СОУСОМ | C5: 70/30 | D5: 15.3 | E5: 29.4 | F5: 15.46 | G5: 388 | H5: 0.1 | I5: 1.04 | J5: 91.4 | K5: 0.56 | L5: 55.54 | M5: 97.54 | N5: 20.8 | O5: 1.42
A6: 171 | B6: КАША ГРЕЧНЕВАЯ РАССЫПЧАТАЯ | C6: 200 | D6: 11.07 | E6: 11.97 | F6: 49.83 | G6: 350 | H6: 0.27 | I6: - | J6: 50 | K6: 1 | L6: 146.93 | M6: 60.27 | N6: 28.4 | O6: 1.87
A7: 349 | B7: КОМПОТ ИЗ СУХОФРУКТОВ | C7: 200 | D7: 0.66 | E7: 1.5 | F7: 22.6 | G7: 132.8 | H7: 0.016 | I7: 0.73 | J7: - | K7: - | L7: 32.48 | M7: 23.44 | N7: 17.46 | O7: 0.698
B8: ХЛЕБ ПШЕНИЧНЫЙ | C8: 40 | D8: 3.04 | E8: 0.32 | F8: 15.68 | G8: 94.67 | H8: 0.044 | I8: - | J8: - | K8: 0.44 | L8: 8 | M8: 26 | N8: 5.6 | O8: 0.44
B9: ХЛЕБ СЕЛЬСКИЙ | C9: 40 | D9: 2 | E9: 0.4 | F9: 18 | G9: 88 | H9: 0.028 | I9: - | J9: - | K9: 0.216 | L9: 5.52 | M9: 25.44 | N9: 6 | O9: 0.24
B10: Итого: | C10: 640 | D10: =SUM(D6:D9) -> 16.77 | E10: 14.19 | F10: 106.11 | G10: 665.47 | H10: 0.358 | I10: 0.73 | J10: 50 | K10: 1.656 | L10: 192.93 | M10: 135.15 | N10: 57.46 | O10: 3.248

Sheet 6
A1: № рец. | B1: Наименование блюд | C1: Выход | D1: Белки, г | E1: Жиры, г | F1: Углеводы, г | G1: Калорийность, ккал | H1: Витамин В1, мг | I1: Витамин С, мг | J1: Витамин А, мг | K1: Витамин Е, мг | L1: Ca, мг | M1: Р, мг | N1: Mg, мг | O1: Fe, мг
B2: 1-ая неделя
B3: 6 день
A4: 338 | B4: ФРУКТЫ | C4: 100 | D4: 0.4 | E4: 0.4 | F4: 9.8 | G4: 47 | H4: 0.03 | I4: 10 | J4: - | K4: 0.2 | L4: 16 | M4: 11 | N4: 9 | O4: 1.1
A5: 45 | B5: САЛАТ ИЗ БЕЛОКОЧАННОЙ КАПУСТЫ | C5: 60 | D5: 0.79 | E5: 1.95 | F5: 3.88 | G5: 36.24 | H5: 0.01 | I5: 10.26 | J5: - | K5: - | L5: 14.98 | M5: 16.98 | N5: 9.05 | O5: 0.28
A6: 103 | B6: СУП КАРТОФЕЛЬНЫЙ С МАКАРОННЫМИ ИЗДЕЛИЯМИ С ФРИКАДЕЛЬКАМИ ГОВЯЖЬИМИ | C6: 250/22 | D6: 3.02 | E6: 3.86 | F6: 19.98 | G6: 127.35 | H6: 0.13 | I6: 9.34 | J6: - | K6: - | L6: 32.65 | M6: 87.69 | N6: 32.14 | O6: 1.58
A7: 376 | B7: ЧАЙ ЧЕРНЫЙ С САХАРОМ | C7: 200/8 | D7: 0.321 | E7: 0.005 | F7: 21.725 | G7: 88 | H7: 0.15 | I7: - | J7: 0.309 | K7: 1.5 | L7: 100.45 | M7: 91.5 | N7: 10 | O7: 0.3
B8: ХЛЕБ ПШЕНИЧНЫЙ | C8: 40 | D8: 3.04 | E8: 0.32 | F8: 15.68 | G8: 94.67 | H8: 0.044 | I8: - | J8: - | K8: 0.44 | L8: 8 | M8: 26 | N8: 5.6 | O8: 0.44
B9: ХЛЕБ СЕЛЬСКИЙ | C9: 40 | D9: 2 | E9: 0.4 | F9: 18 | G9: 88 | H9: 0.028 | I9: - | J9: - | K9: 0.216 | L9: 5.52 | M9: 25.44 | N9: 6 | O9: 0.24
B10: Итого: | C10: 720 | D10: =SUM(D4:D9) -> 9.571 | E10: 6.935 | F10: 89.065 | G10: 481.26 | H10: 0.392 | I10: 29.6 | J10: 0.309 | K10: 2.356 | L10: 177.6 | M10: 258.61 | N10: 71.79 | O10: 3.94
B11: Средняя за первую неделю: | C11: =('1'!C12+'2'!C11+'3'!C11+'4'!C10+'5'!C10+'6'!C10)/6 -> 663 | D11: =('1'!D12+'2'!D11+'3'!D11+'4'!D10+'5'!D10+'6'!D10)/6 -> 22.171 | E11: =('1'!E12+'2'!E11+'3'!E11+'4'!E10+'5'!E10+'6'!E10)/6 -> 23.178 | F11: =('1'!F12+'2'!F11+'3'!F11+'4'!F10+'5'!F10+'6'!F10)/6 -> 110.690 | G11: =('1'!G12+'2'!G11+'3'!G11+'4'!G10+'5'!G10+'6'!G10)/6 -> 745.113 | H11: =('1'!H12+'2'!H11+'3'!H11+'4'!H10+'5'!H10+'6'!H10)/6 -> 0.328 | I11: =('1'!I12+'2'!I11+'3'!I11+'4'!I10+'5'!I10+'6'!I10)/6 -> 19.502 | J11: =('1'!J12+'2'!J11+'3'!J11+'4'!J10+'5'!J10+'6'!J10)/6 -> 163.006 | K11: =('1'!K12+'2'!K11+'3'!K11+'4'!K10+'5'!K10+'6'!K10)/6 -> 2.688 | L11: =('1'!L12+'2'!L11+'3'!L11+'4'!L10+'5'!L10+'6'!L10)/6 -> 230.012 | M11: =('1'!M12+'2'!M11+'3'!M11+'4'!M10+'5'!M10+'6'!M10)/6 -> 247.122 | N11: =('1'!N12+'2'!N11+'3'!N11+'4'!N10+'5'!N10+'6'!N10)/6 -> 75.555 | O11: =('1'!O12+'2'!O11+'3'!O11+'4'!O10+'5'!O10+'6'!O10)/6 -> 4.041

Sheet 7
A1: № рец. | B1: Наименование блюд | C1: Выход | D1: Белки, г | E1: Жиры, г | F1: Углеводы, г | G1: Калорийность, ккал | H1: Витамин В1, мг | I1: Витамин С, мг | J1: Витамин А, мг | K1: Витамин Е, мг | L1: Ca, мг | M1: Р, мг | N1: Mg, мг | O1: Fe, мг
B2: 2-ая неделя
B3: 1 день
A4: 15 | B4: СЫР ПОРЦИЯМИ | C4: 10 | D4: 2.32 | E4: 2.7 | F4: - | G4: 20.8 | H4: 0.004 | I4: 1.2 | J4: 52.55 | K4: 0.05 | L4: 44 | M4: 21.7 | N4: 3.5 | O4: 0.05
A5: 62 | B5: САЛАТ ИЗ МОРКОВИ | C5: 60 | D5: 0.74 | E5: 0.056 | F5: 6.89 | G5: 49.02 | H5: 0.03 | I5: 2.02 | J5: - | K5: - | L5: 15.46 | M5: 31.66 | N5: 21.63 | O5: 0.4
A6: 290 | B6: ПТИЦА ТУШЕНАЯ В СОУСЕ | C6: 50/50 | D6: 9.44 | E6: 14.25 | F6: 10.59 | G6: 197.25 | H6: 0.068 | I6: 1.294 | J6: 96.65 | K6: - | L6: 97.431 | M6: 110.138 | N6: 18.315 | O6: 1.563
A7: 171 | B7: КАША ГРЕЧНЕВАЯ РАССЫПЧАТАЯ | C7: 200 | D7: 11.07 | E7: 11.97 | F7: 49.83 | G7: 350 | H7: 0.27 | I7: - | J7: 50 | K7: 1 | L7: 146.93 | M7: 60.27 | N7: 28.4 | O7: 1.87
A8: 349 | B8: КОМПОТ ИЗ СУХОФРУКТОВ | C8: 200 | D8: 0.66 | E8: 1.5 | F8: 22.6 | G8: 132.8 | H8: 0.016 | I8: 0.73 | J8: - | K8: - | L8: 32.48 | M8: 23.44 | N8: 17.46 | O8: 0.698
B9: ХЛЕБ ПШЕНИЧНЫЙ | C9: 40 | D9: 3.04 | E9: 0.32 | F9: 15.68 | G9: 94.67 | H9: 0.044 | I9: - | J9: - | K9: 0.44 | L9: 8 | M9: 26 | N9: 5.6 | O9: 0.44
B10: ХЛЕБ СЕЛЬСКИЙ | C10: 40 | D10: 2 | E10: 0.4 | F10: 18 | G10: 88 | H10: 0.028 | I10: - | J10: - | K10: 0.216 | L10: 5.52 | M10: 25.44 | N10: 6 | O10: 0.24
B11: Итого: | C11: 650 | D11: =SUM(D4:D10) -> 29.27 | E11: =SUM(E4:E10) -> 31.196 | F11: 123.59 | G11: 932.54 | H11: 0.46 | I11: 5.244 | J11: 199.2 | K11: 1.706 | L11: 349.821 | M11: 298.648 | N11: 100.905 | O11: 5.261

Sheet 8
A1: № рец. | B1: Наименование блюд | C1: Выход | D1: Белки, г | E1: Жиры, г | F1: Углеводы, г | G1: Калорийность, ккал | H1: Витамин В1, мг | I1: Витамин С, мг | J1: Витамин А, мг | K1: Витамин Е, мг | L1: Ca, мг | M1: Р, мг | N1: Mg, мг | O1: Fe, мг
B2: 2-ая неделя
B3: 2 день
A4: 45 | B4: САЛАТ ИЗ БЕЛОКОЧАННОЙ КАПУСТЫ | C4: 60 | D4: 0.79 | E4: 1.95 | F4: 3.88 | G4: 36.24 | H4: 0.01 | I4: 10.26 | J4: - | K4: - | L4: 14.98 | M4: 16.98 | N4: 9.05 | O4: 0.28
A5: 291 | B5: ПЛОВ ИЗ ПТИЦЫ | C5: 200/50 | D5: 20.01 | E5: 23.69 | F5: 44.27 | G5: 447.09 | H5: 0.18 | I5: 12.5 | J5: 218.5 | K5: - | L5: 162.61 | M5: 128.66 | N5: 58.66 | O5: 1.88
A6: 484 | B6: КИСЕЛЬ | C6: 200 | D6: 0 | E6: 0 | F6: 15 | G6: 60 | H6: 0 | I6: 0 | J6: 0 | K6: 0 | L6: 3.4 | M6: 5.8 | N6: 0 | O6: 0.02
B7: ПЕЧЕНЬЕ | C7: 40 | D7: 3 | E7: 3.92 | F7: 29.76 | G7: 166 | H7: 0.03 | I7: 0 | J7: 52.1 | K7: 1.88 | L7: 11.6 | M7: 36 | N7: 8 | O7: 0.84
B8: ХЛЕБ ПШЕНИЧНЫЙ | C8: 40 | D8: 3.04 | E8: 0.32 | F8: 15.68 | G8: 94.67 | H8: 0.044 | I8: - | J8: - | K8: 0.44 | L8: 8 | M8: 26 | N8: 5.6 | O8: 0.44
B9: ХЛЕБ СЕЛЬСКИЙ | C9: 40 | D9: 2 | E9: 0.4 | F9: 18 | G9: 88 | H9: 0.028 | I9: - | J9: - | K9: 0.216 | L9: 5.52 | M9: 25.44 | N9: 6 | O9: 0.24
B10: Итого: | C10: 630 | D10: =SUM(D4:D9) -> 28.84 | E10: 30.28 | F10: 126.59 | G10: 892 | H10: 0.292 | I10: 22.76 | J10: 270.6 | K10: 2.536 | L10: 206.11 | M10: 238.88 | N10: 87.31 | O10: 3.7

Sheet 9
A1: № рец. | B1: Наименование блюд | C1: Выход | D1: Белки, г | E1: Жиры, г | F1: Углеводы, г | G1: Калорийность, ккал | H1: Витамин В1, мг | I1: Витамин С, мг | J1: Витамин А, мг | K1: Витамин Е, мг | L1: Ca, мг | M1: Р, мг | N1: Mg, мг | O1: Fe, мг
B2: 2-ая неделя
B3: 3 день
A4: 15 | B4: СЫР ПОРЦИЯМИ | C4: 10 | D4: 2.32 | E4: 2.7 | F4: - | G4: 20.8 | H4: 0.004 | I4: 1.2 | J4: 52.55 | K4: 0.05 | L4: 44 | M4: 21.7 | N4: 3.5 | O4: 0.05
A5: 52 | B5: САЛАТ ИЗ СВЕКЛЫ ОТВАРНОЙ | C5: 60 | D5: 0.84 | E5: 1.66 | F5: 4.56 | G5: 54.6 | H5: 0.012 | I5: 5.22 | J5: 57 | K5: 1.62 | L5: 66.2 | M5: 39 | N5: 12 | O5: 0.02
A6: 239 | B6: ТЕФТЕЛИ РЫБНЫЕ С СОУСОМ | C6: 70/30 | D6: 12.27 | E6: 16.53 | F6: 17.33 | G6: 223.67 | H6: 0.075 | I6: 11.82 | J6: 165.067 | K6: - | L6: 176.04 | M6: 120.448 | N6: 48.31 | O6: 1.5
A7: 203 | B7: МАКАРОННЫЕ ИЗДЕЛИЯ ОТВАРНЫЕ С МАСЛОМ | C7: 180/5 | D7: 6.66 | E7: 10.74 | F7: 35.46 | G7: 221.4 | H7: 0.072 | I7: 6.36 | J7: 37.8 | K7: 0.9 | L7: 14.4 | M7: 54 | N7: 9 | O7: 1.26
A8: 376 | B8: ЧАЙ ЧЕРНЫЙ С САХАРОМ | C8: 200/8 | D8: 0.321 | E8: 0.005 | F8: 21.725 | G8: 88 | H8: 0.15 | I8: - | J8: 0.309 | K8: 1.5 | L8: 100.45 | M8: 91.5 | N8: 10 | O8: 0.3
B9: ХЛЕБ ПШЕНИЧНЫЙ | C9: 40 | D9: 3.04 | E9: 0.32 | F9: 15.68 | G9: 94.67 | H9: 0.044 | I9: - | J9: - | K9: 0.44 | L9: 8 | M9: 26 | N9: 5.6 | O9: 0.44
B10: ХЛЕБ СЕЛЬСКИЙ | C10: 40 | D10: 2 | E10: 0.4 | F10: 18 | G10: 88 | H10: 0.028 | I10: - | J10: - | K10: 0.216 | L10: 5.52 | M10: 25.44 | N10: 6 | O10: 0.24
B11: Итого: | C11: 643 | D11: =SUM(D4:D10) -> 27.451 | E11: =SUM(E4:E10) -> 32.355 | F11: 112.755 | G11: 791.14 | H11: 0.385 | I11: 24.6 | J11: 312.726 | K11: 4.726 | L11: 414.61 | M11: 378.088 | N11: 94.41 | O11: 3.81

Sheet 10
A1: № рец. | B1: Наименование блюд | C1: Выход | D1: Белки, г | E1: Жиры, г | F1: Углеводы, г | G1: Калорийность, ккал | H1: Витамин В1, мг | I1: Витамин С, мг | J1: Витамин А, мг | K1: Витамин Е, мг | L1: Ca, мг | M1: Р, мг | N1: Mg, мг | O1: Fe, мг
B2: 2-ая неделя
B3: 4 день
A4: 338 | B4: ФРУКТЫ | C4: 100 | D4: 0.4 | E4: 0.4 | F4: 9.8 | G4: 47 | H4: 0.03 | I4: 10 | J4: - | K4: 0.2 | L4: 16 | M4: 11 | N4: 9 | O4: 1.1
A5: 14 | B5: МАСЛО СЛИВОЧНОЕ | C5: 10 | D5: 0.08 | E5: 7.25 | F5: 0.13 | G5: 66 | H5: - | I5: - | J5: 40 | K5: 0.01 | L5: 2.4 | M5: 3 | N5: - | O5: 0.02
A6: 62 | B6: САЛАТ ИЗ МОРКОВИ | C6: 60 | D6: 0.74 | E6: 0.056 | F6: 6.89 | G6: 49.02 | H6: 0.03 | I6: 2.02 | J6: - | K6: - | L6: 15.46 | M6: 31.66 | N6: 21.63 | O6: 0.4
A7: 347 | B7: КОТЛЕТЫ "ШКОЛЬНЫЕ" С СОУСОМ | C7: 70/30 | D7: 15.3 | E7: 11 | F7: 13.3 | G7: 213 | H7: 0.14 | I7: - | J7: 30 | K7: 1.4 | L7: 50 | M7: 136 | N7: 21 | O7: 2.07
A8: 312 | B8: ПЮРЕ КАРТОФЕЛЬНОЕ | C8: 180 | D8: 5.724 | E8: 6.516 | F8: 46.62 | G8: 263.16 | H8: 0.0384 | I8: 11.76 | J8: 44.4 | K8: 0.342 | L8: 44.7 | M8: 100.44 | N8: 21.78 | O8: 0.9648
A9: 377 | B9: ЧАЙ ЧЕРНЫЙ С САХАРОМ С ЛИМОНОМ | C9: 200/8/7 | D9: 0.13 | E9: 0.02 | F9: 15.2 | G9: 62 | H9: 0 | I9: 2.83 | J9: 0 | K9: 1.5 | L9: 14.2 | M9: 4.4 | N9: 2.4 | O9: 0.36
B10: ХЛЕБ ПШЕНИЧНЫЙ | C10: 40 | D10: 3.04 | E10: 0.32 | F10: 15.68 | G10: 94.67 | H10: 0.044 | I10: - | J10: - | K10: 0.44 | L10: 8 | M10: 26 | N10: 5.6 | O10: 0.44
B11: ХЛЕБ СЕЛЬСКИЙ | C11: 40 | D11: 2 | E11: 0.4 | F11: 18 | G11: 88 | H11: 0.028 | I11: - | J11: - | K11: 0.216 | L11: 5.52 | M11: 25.44 | N11: 6 | O11: 0.24
B12: Итого: | C12: 745 | D12: =SUM(D4:D11) -> 27.414 | E12: 25.962 | F12: 125.62 | G12: 882.85 | H12: 0.3104 | I12: 26.61 | J12: 114.4 | K12: 4.108 | L12: 156.28 | M12: 337.94 | N12: 87.41 | O12: 5.5948

Sheet 11
A1: № рец. | B1: Наименование блюд | C1: Выход | D1: Белки, г | E1: Жиры, г | F1: Углеводы, г | G1: Калорийность, ккал | H1: Витамин В1, мг | I1: Витамин С, мг | J1: Витамин А, мг | K1: Витамин Е, мг | L1: Ca, мг | M1: Р, мг | N1: Mg, мг | O1: Fe, мг
B2: 2-ая неделя
B3: 5 день
A4: 45 | B4: САЛАТ ИЗ БЕЛОКОЧАННОЙ КАПУСТЫ | C4: 60 | D4: 0.79 | E4: 1.95 | F4: 3.88 | G4: 36.24 | H4: 0.01 | I4: 10.26 | J4: - | K4: - | L4: 14.98 | M4: 16.98 | N4: 9.05 | O4: 0.28
A5: 295 | B5: БИТОЧКИ КУРИНЫЕ С СОУСОМ | C5: 70/30 | D5: 15.3 | E5: 29.4 | F5: 15.46 | G5: 388 | H5: 0.1 | I5: 1.04 | J5: 91.4 | K5: 0.56 | L5: 55.54 | M5: 97.54 | N5: 20.8 | O5: 1.42
A6: 203 | B6: МАКАРОННЫЕ ИЗДЕЛИЯ ОТВАРНЫЕ С МАСЛОМ | C6: 180/5 | D6: 6.66 | E6: 10.74 | F6: 35.46 | G6: 221.4 | H6: 0.072 | I6: 6.36 | J6: 37.8 | K6: 0.9 | L6: 14.4 | M6: 54 | N6: 9 | O6: 1.26
A7: 349 | B7: КОМПОТ ИЗ СУХОФРУКТОВ | C7: 200 | D7: 0.66 | E7: 1.5 | F7: 22.6 | G7: 132.8 | H7: 0.016 | I7: 0.73 | J7: - | K7: - | L7: 32.48 | M7: 23.44 | N7: 17.46 | O7: 0.698
B8: ХЛЕБ ПШЕНИЧНЫЙ | C8: 40 | D8: 3.04 | E8: 0.32 | F8: 15.68 | G8: 94.67 | H8: 0.044 | I8: - | J8: - | K8: 0.44 | L8: 8 | M8: 26 | N8: 5.6 | O8: 0.44
B9: ХЛЕБ СЕЛЬСКИЙ | C9: 40 | D9: 2 | E9: 0.4 | F9: 18 | G9: 88 | H9: 0.028 | I9: - | J9: - | K9: 0.216 | L9: 5.52 | M9: 25.44 | N9: 6 | O9: 0.24
B10: Итого: | C10: 625 | D10: =SUM(D5:D9) -> 27.66 | E10: 42.36 | F10: 107.2 | G10: 924.87 | H10: 0.26 | I10: 8.13 | J10: 129.2 | K10: 2.116 | L10: 115.94 | M10: 226.42 | N10: 58.86 | O10: 4.058

Sheet 12
A1: № рец. | B1: Наименование блюд | C1: Выход | D1: Белки, г | E1: Жиры, г | F1: Углеводы, г | G1: Калорийность, ккал | H1: Витамин В1, мг | I1: Витамин С, мг | J1: Витамин А, мг | K1: Витамин Е, мг | L1: Ca, мг | M1: Р, мг | N1: Mg, мг | O1: Fe, мг
B2: 2-ая неделя
B3: 6 день
A4: 338 | B4: ФРУКТЫ | C4: 100 | D4: 0.4 | E4: 0.4 | F4: 9.8 | G4: 47 | H4: 0.03 | I4: 10 | J4: - | K4: 0.2 | L4: 16 | M4: 11 | N4: 9 | O4: 1.1
A5: 15 | B5: СЫР ПОРЦИЯМИ | C5: 10 | D5: 2.32 | E5: 2.7 | F5: - | G5: 20.8 | H5: 0.004 | I5: 1.2 | J5: 52.55 | K5: 0.05 | L5: 44 | M5: 21.7 | N5: 3.5 | O5: 0.05
A6: 14 | B6: МАСЛО СЛИВОЧНОЕ | C6: 10 | D6: 0.08 | E6: 7.25 | F6: 0.13 | G6: 66 | H6: - | I6: - | J6: 40 | K6: 0.01 | L6: 2.4 | M6: 3 | N6: - | O6: 0.02
A7: 174 | B7: КАША ВЯЗКАЯ МОЛОЧНАЯ РИСОВАЯ С МАСЛОМ | C7: 200/5 | D7: 15.2 | E7: 11.85 | F7: 42.95 | G7: 294 | H7: 0.16 | I7: 5.96 | J7: 134.7 | K7: - | L7: 150.67 | M7: 157.44 | N7: 36.46 | O7: 0.9
A8: 376 | B8: ЧАЙ ЧЕРНЫЙ С САХАРОМ | C8: 200/8 | D8: 0.321 | E8: 0.005 | F8: 21.725 | G8: 88 | H8: 0.15 | I8: - | J8: 0.309 | K8: 1.5 | L8: 100.45 | M8: 131.5 | N8: 16.5 | O8: 0.3
B9: ХЛЕБ ПШЕНИЧНЫЙ | C9: 40 | D9: 3.04 | E9: 0.32 | F9: 15.68 | G9: 94.67 | H9: 0.044 | I9: - | J9: - | K9: 0.44 | L9: 8 | M9: 26 | N9: 5.6 | O9: 0.44
B10: ХЛЕБ СЕЛЬСКИЙ | C10: 40 | D10: 2 | E10: 0.4 | F10: 18 | G10: 88 | H10: 0.028 | I10: - | J10: - | K10: 0.216 | L10: 5.52 | M10: 25.44 | N10: 6 | O10: 0.24
B11: Итого: | C11: 613 | D11: =SUM(D7:D10) -> 20.561 | E11: 12.575 | F11: 98.355 | G11: 564.67 | H11: 0.382 | I11: 5.96 | J11: 135.009 | K11: 2.156 | L11: 264.64 | M11: 340.38 | N11: 64.56 | O11: 1.88
B12: Средняя за вторую неделю: | C12: =('7'!C11+'8'!C10+'9'!C11+'10'!C12+'11'!C10+'12'!C11)/6 -> 651 | D12: =('7'!D11+'8'!D10+'9'!D11+'10'!D12+'11'!D10+'12'!D11)/6 -> 26.87 | E12: =('7'!E11+'8'!E10+'9'!E11+'10'!E12+'11'!E10+'12'!E11)/6 -> 29.12 | F12: =('7'!F11+'8'!F10+'9'!F11+'10'!F12+'11'!F10+'12'!F11)/6 -> 115.69 | G12: =('7'!G11+'8'!G10+'9'!G11+'10'!G12+'11'!G10+'12'!G11)/6 -> 831.35 | H12: =('7'!H11+'8'!H10+'9'!H11+'10'!H12+'11'!H10+'12'!H11)/6 -> 0.35 | I12: =('7'!I11+'8'!I10+'9'!I11+'10'!I12+'11'!I10+'12'!I11)/6 -> 15.55 | J12: =('7'!J11+'8'!J10+'9'!J11+'10'!J12+'11'!J10+'12'!J11)/6 -> 193.52 | K12: =('7'!K11+'8'!K10+'9'!K11+'10'!K12+'11'!K10+'12'!K11)/6 -> 2.89 | L12: =('7'!L11+'8'!L10+'9'!L11+'10'!L12+'11'!L10+'12'!L11)/6 -> 251.23 | M12: =('7'!M11+'8'!M10+'9'!M11+'10'!M12+'11'!M10+'12'!M11)/6 -> 303.39 | N12: =('7'!N11+'8'!N10+'9'!N11+'10'!N12+'11'!N10+'12'!N11)/6 -> 82.24 | O12: =('7'!O11+'8'!O10+'9'!O11+'10'!O12+'11'!O10+'12'!O11)/6 -> 4.05
B13: Средняя за две недели: | C13: =('6'!C11+'12'!C12)/2 -> 657 | D13: =('6'!D11+'12'!D12)/2 -> 24.52 | E13: =('6'!E11+'12'!E12)/2 -> 26.15 | F13: =('6'!F11+'12'!F12)/2 -> 113.19 | G13: =('6'!G11+'12'!G12)/2 -> 788.23 | H13: =('6'!H11+'12'!H12)/2 -> 0.34 | I13: =('6'!I11+'12'!I12)/2 -> 17.53 | J13: =('6'!J11+'12'!J12)/2 -> 178.26 | K13: =('6'!K11+'12'!K12)/2 -> 2.79 | L13: =('6'!L11+'12'!L12)/2 -> 240.62 | M13: =('6'!M11+'12'!M12)/2 -> 275.26 | N13: =('6'!N11+'12'!N12)/2 -> 78.90 | O13: =('6'!O11+'12'!O12)/2 -> 4.05
